[Event "The Kvibergspelen 2024"]
[Site "Kviberg Park Hotel & Conference, Krutvagen 2, Gothenburg, Sweden"]
[Date "2024.09.07"]
[Round "5.5"]
[White "Muntean, Victor"]
[Black "Nilsson, Oliver"]
[Result "1-0"]
[TimeControl "15 minutes + 5 seconds per move from move one (Round 1 - 4) / 90 minutes + 30 seconds per move from move one (Round 5 - 8)"]
[WhiteFideId "1054414"]
[BlackFideId "1730177"]
[WhiteElo "2158"]
[BlackElo "2050"]

1. e4 {[%clk 01:26:07]} {[%emt 00:04:53]} c5 {[%clk 01:30:22]} {[%emt
00:00:31]} 2. c3 {[%clk 01:26:21]} {[%emt 00:00:16]} d5 {[%clk 01:30:49]}
{[%emt 00:00:10]} 3. exd5 {[%clk 01:26:44]} {[%emt 00:00:07]} Qxd5 {[%clk
01:31:15]} {[%emt 00:00:04]} 4. Nf3 {[%clk 01:26:17]} {[%emt 00:00:57]} Nf6
{[%clk 01:31:39]} {[%emt 00:00:06]} 5. Na3 {[%clk 01:26:30]} {[%emt 00:00:18]}
Nc6 {[%clk 01:30:40]} {[%emt 00:01:28]} 6. d4 {[%clk 01:25:13]} {[%emt
00:01:47]} e6 {[%clk 01:30:56]} {[%emt 00:00:14]} 7. Nb5 {[%clk 01:23:09]}
{[%emt 00:02:35]} Qd8 {[%clk 01:31:21]} {[%emt 00:00:05]} 8. dxc5 {[%clk
01:22:43]} {[%emt 00:00:56]} Bxc5 {[%clk 01:31:42]} {[%emt 00:00:08]} 9. Qxd8+
{[%clk 01:23:06]} {[%emt 00:00:08]} Kxd8 {[%clk 01:32:06]} {[%emt 00:00:05]} 10.
Bf4 {[%clk 01:22:33]} {[%emt 00:01:03]} Ne4 {[%clk 01:32:12]} {[%emt 00:00:24]}
11. Ng5 {[%clk 01:15:34]} {[%emt 00:07:29]} Bxf2+ {[%clk 01:22:00]} {[%emt
00:10:43]} 12. Ke2 {[%clk 01:15:46]} {[%emt 00:00:17]} Nxg5 {[%clk 01:22:20]}
{[%emt 00:00:10]} 13. Bxg5+ {[%clk 01:16:09]} {[%emt 00:00:07]} f6 {[%clk
01:22:45]} {[%emt 00:00:06]} 14. Kxf2 {[%clk 01:12:44]} {[%emt 00:03:54]} fxg5
{[%clk 01:23:08]} {[%emt 00:00:07]} 15. Bc4 {[%clk 01:11:14]} {[%emt 00:01:59]}
Rf8+ {[%clk 01:17:15]} {[%emt 00:06:24]} 16. Kg3 {[%clk 01:11:10]} {[%emt
00:00:34]} Rf4 {[%clk 01:07:58]} {[%emt 00:09:46]} 17. Bb3 {[%clk 01:08:29]}
{[%emt 00:03:12]} h5 {[%clk 01:00:22]} {[%emt 00:08:06]} 18. h3 {[%clk
01:08:04]} {[%emt 00:00:55]} h4+ {[%clk 00:57:33]} {[%emt 00:03:19]} 19. Kh2
{[%clk 01:08:30]} {[%emt 00:00:05]} Bd7 {[%clk 00:56:01]} {[%emt 00:02:01]} 20.
Rad1 {[%clk 01:05:48]} {[%emt 00:03:12]} Ke7 {[%clk 00:52:07]} {[%emt
00:04:24]} 21. Rhe1 {[%clk 01:03:19]} {[%emt 00:02:59]} Rd8 {[%clk 00:25:55]}
{[%emt 00:26:42]} 22. Nc7 {[%clk 01:02:37]} {[%emt 00:01:11]} Rf6 {[%clk
00:26:17]} {[%emt 00:00:09]} 23. Nd5+ {[%clk 01:01:59]} {[%emt 00:01:08]} Kf7
{[%clk 00:26:42]} {[%emt 00:00:05]} 24. Nxf6 {[%clk 01:02:23]} {[%emt
00:00:05]} gxf6 {[%clk 00:27:08]} {[%emt 00:00:04]} 25. Rxd7+ {[%clk 01:00:25]}
{[%emt 00:02:28]} Rxd7 {[%clk 00:25:48]} {[%emt 00:01:51]} 26. Bxe6+ {[%clk
01:00:49]} {[%emt 00:00:05]} Ke7 {[%clk 00:26:09]} {[%emt 00:00:09]} 27. Bxd7+
{[%clk 01:01:15]} {[%emt 00:00:05]} Kxd7 {[%clk 00:26:33]} {[%emt 00:00:06]} 28.
Rd1+ {[%clk 00:59:46]} {[%emt 00:01:59]} Ke7 {[%clk 00:26:31]} {[%emt
00:00:31]} 29. c4 {[%clk 00:59:14]} {[%emt 00:01:03]} Ne5 {[%clk 00:26:53]}
{[%emt 00:00:08]} 30. c5 {[%clk 00:59:29]} {[%emt 00:00:15]} f5 {[%clk
00:27:18]} {[%emt 00:00:04]} 31. b4 {[%clk 00:59:17]} {[%emt 00:00:43]} a6
{[%clk 00:27:34]} {[%emt 00:00:14]} 32. a4 {[%clk 00:59:35]} {[%emt 00:00:12]}
g4 {[%clk 00:27:59]} {[%emt 00:00:05]} 33. Rd5 {[%clk 00:59:03]} {[%emt
00:01:02]} Ke6 {[%clk 00:27:32]} {[%emt 00:00:57]} 34. Rd6+ {[%clk 00:59:29]}
{[%emt 00:00:04]} Ke7 {[%clk 00:27:42]} {[%emt 00:00:20]} 35. Rb6 {[%clk
00:59:53]} {[%emt 00:00:06]} g3+ {[%clk 00:28:08]} {[%emt 00:00:04]} 36. Kg1
{[%clk 01:00:01]} {[%emt 00:00:21]} f4 {[%clk 00:28:33]} {[%emt 00:00:06]} 37.
Rxb7+ {[%clk 01:00:05]} {[%emt 00:00:27]} Ke6 {[%clk 00:28:53]} {[%emt
00:00:09]} 38. Rb6+ {[%clk 01:00:07]} {[%emt 00:00:28]} Kd5 {[%clk 00:29:11]}
{[%emt 00:00:11]} 39. Rd6+ {[%clk 01:00:25]} {[%emt 00:00:13]} Ke4 {[%clk
00:29:31]} {[%emt 00:00:10]} 40. c6 {[%clk 00:59:43]} {[%emt 00:01:12]} f3
{[%clk 00:29:50]} {[%emt 00:00:10]} 41. Re6 {[%clk 00:59:42]} {[%emt 00:00:32]}
a5 {[%clk 00:26:49]} {[%emt 00:03:31]} 42. Rxe5+ {[%clk 00:59:52]} {[%emt
00:00:20]} Kxe5 {[%clk 00:27:12]} {[%emt 00:00:07]} 43. c7 {[%clk 01:00:16]}
{[%emt 00:00:06]} axb4 {[%clk 00:27:21]} {[%emt 00:00:20]} 44. c8=Q {[%clk
01:00:37]} {[%emt 00:00:10]} f2+ {[%clk 00:27:42]} {[%emt 00:00:09]} 45. Kf1
{[%clk 01:01:02]} {[%emt 00:00:05]} Kd4 {[%clk 00:28:06]} {[%emt 00:00:05]} 46.
a5 {[%clk 01:01:05]} {[%emt 00:00:28]} b3 {[%clk 00:28:32]} {[%emt 00:00:04]}
47. a6 {[%clk 01:01:27]} {[%emt 00:00:09]} b2 {[%clk 00:28:58]} {[%emt
00:00:03]} 48. Qh8+ {[%clk 01:01:51]} {[%emt 00:00:06]} 1-0

[Event "The Kvibergspelen 2024"]
[Site "Kviberg Park Hotel & Conference, Krutvagen 2, Gothenburg, Sweden"]
[Date "2024.09.07"]
[Round "5.6"]
[White "Nord, Alexander"]
[Black "Wickstrom, Carina"]
[Result "1-0"]
[TimeControl "15 minutes + 5 seconds per move from move one (Round 1 - 4) / 90 minutes + 30 seconds per move from move one (Round 5 - 8)"]
[WhiteTitle "CM"]
[WhiteFideId "1738135"]
[BlackFideId "1743201"]
[WhiteElo "2209"]
[BlackElo "2015"]

1. d4 {[%clk 01:30:56]} {[%emt 00:00:03]} d5 {[%clk 01:30:53]} {[%emt
00:00:09]} 2. c4 {[%clk 01:31:14]} {[%emt 00:00:11]} c6 {[%clk 01:31:19]}
{[%emt 00:00:04]} 3. Nc3 {[%clk 01:29:43]} {[%emt 00:02:00]} Nf6 {[%clk
01:31:20]} {[%emt 00:00:30]} 4. Nf3 {[%clk 01:29:45]} {[%emt 00:00:28]} e6
{[%clk 01:31:24]} {[%emt 00:00:26]} 5. e3 {[%clk 01:25:05]} {[%emt 00:05:09]}
Bd6 {[%clk 01:31:12]} {[%emt 00:00:42]} 6. Be2 {[%clk 01:24:52]} {[%emt
00:00:43]} O-O {[%clk 01:31:28]} {[%emt 00:00:14]} 7. O-O {[%clk 01:25:17]}
{[%emt 00:00:05]} Nbd7 {[%clk 01:30:16]} {[%emt 00:01:43]} 8. b3 {[%clk
01:25:17]} {[%emt 00:00:30]} Ne4 {[%clk 01:18:43]} {[%emt 00:12:03]} 9. Bb2
{[%clk 01:06:54]} {[%emt 00:18:53]} f5 {[%clk 01:13:24]} {[%emt 00:05:48]} 10.
a3 {[%clk 00:57:53]} {[%emt 00:09:31]} g5 {[%clk 01:09:16]} {[%emt 00:04:38]}
11. g3 {[%clk 00:51:16]} {[%emt 00:07:07]} g4 {[%clk 00:53:39]} {[%emt
00:16:07]} 12. Nxe4 {[%clk 00:43:05]} {[%emt 00:08:41]} dxe4 {[%clk 00:46:46]}
{[%emt 00:07:24]} 13. Ne5 {[%clk 00:37:41]} {[%emt 00:05:53]} Nf6 {[%clk
00:43:57]} {[%emt 00:03:19]} 14. b4 {[%clk 00:32:21]} {[%emt 00:05:51]} Bd7
{[%clk 00:39:46]} {[%emt 00:04:41]} 15. Qb3 {[%clk 00:31:40]} {[%emt 00:01:11]}
Qe8 {[%clk 00:35:36]} {[%emt 00:04:39]} 16. Rfd1 {[%clk 00:29:31]} {[%emt
00:02:39]} Rd8 {[%clk 00:30:20]} {[%emt 00:05:47]} 17. a4 {[%clk 00:29:08]}
{[%emt 00:00:53]} Bb8 {[%clk 00:23:56]} {[%emt 00:06:54]} 18. b5 {[%clk
00:28:49]} {[%emt 00:00:49]} Qh5 {[%clk 00:21:36]} {[%emt 00:02:50]} 19. Ba3
{[%clk 00:24:47]} {[%emt 00:04:31]} Rfe8 {[%clk 00:21:13]} {[%emt 00:00:53]} 20.
Rab1 {[%clk 00:24:44]} {[%emt 00:00:34]} h6 {[%clk 00:20:41]} {[%emt 00:01:02]}
21. h4 {[%clk 00:23:56]} {[%emt 00:01:17]} Kg7 {[%clk 00:15:18]} {[%emt
00:05:53]} 22. Qc3 {[%clk 00:22:25]} {[%emt 00:02:01]} Kg8 {[%clk 00:13:39]}
{[%emt 00:02:10]} 23. Rb3 {[%clk 00:21:45]} {[%emt 00:01:09]} Nh7 {[%clk
00:13:39]} {[%emt 00:00:31]} 24. Bb2 {[%clk 00:18:34]} {[%emt 00:03:40]} Bxe5
{[%clk 00:11:12]} {[%emt 00:02:58]} 25. dxe5 {[%clk 00:19:02]} {[%emt
00:00:02]} Nf8 {[%clk 00:10:38]} {[%emt 00:01:04]} 26. Ba3 {[%clk 00:18:07]}
{[%emt 00:01:24]} Qf7 {[%clk 00:10:08]} {[%emt 00:01:00]} 27. Rb2 {[%clk
00:17:05]} {[%emt 00:01:31]} Bc8 {[%clk 00:09:49]} {[%emt 00:00:51]} 28. Rbd2
{[%clk 00:16:42]} {[%emt 00:00:53]} Rd7 {[%clk 00:08:44]} {[%emt 00:01:35]} 29.
Rxd7 {[%clk 00:15:57]} {[%emt 00:01:15]} Nxd7 {[%clk 00:09:06]} {[%emt
00:00:07]} 30. Qd4 {[%clk 00:15:48]} {[%emt 00:00:39]} Qg7 {[%clk 00:09:00]}
{[%emt 00:00:37]} 31. Bd6 {[%clk 00:13:12]} {[%emt 00:03:05]} cxb5 {[%clk
00:05:12]} {[%emt 00:04:19]} 32. axb5 {[%clk 00:13:34]} {[%emt 00:00:08]} b6
{[%clk 00:05:18]} {[%emt 00:00:23]} 33. Ra1 {[%clk 00:12:48]} {[%emt 00:01:16]}
Nf8 {[%clk 00:04:01]} {[%emt 00:01:48]} 34. Bb8 {[%clk 00:12:41]} {[%emt
00:00:37]} Re7 {[%clk 00:03:28]} {[%emt 00:01:02]} 35. Qd8 {[%clk 00:10:13]}
{[%emt 00:02:58]} Bb7 {[%clk 00:03:36]} {[%emt 00:00:23]} 36. Rxa7 {[%clk
00:10:04]} {[%emt 00:00:39]} Rd7 {[%clk 00:02:02]} {[%emt 00:02:04]} 37. Qxb6
{[%clk 00:10:03]} {[%emt 00:00:31]} Ng6 {[%clk 00:01:12]} {[%emt 00:01:20]} 38.
c5 {[%clk 00:09:06]} {[%emt 00:01:26]} f4 {[%clk 00:00:45]} {[%emt 00:00:56]}
39. Qxe6+ {[%clk 00:08:40]} {[%emt 00:00:58]} Kh7 {[%clk 00:01:02]} {[%emt
00:00:13]} 40. c6 {[%clk 00:08:12]} {[%emt 00:00:58]} Bxc6 {[%clk 00:01:22]}
{[%emt 00:00:10]} 41. bxc6 {[%clk 00:07:37]} {[%emt 00:01:05]} Rxa7 {[%clk
00:01:46]} {[%emt 00:00:06]} 42. Bxa7 {[%clk 00:07:58]} {[%emt 00:00:09]} Nxe5
{[%clk 00:00:40]} {[%emt 00:01:36]} 43. Bd4 {[%clk 00:07:50]} {[%emt 00:00:37]}
fxg3 {[%clk 00:00:00]} {[%emt 00:00:43]} 1-0

[Event "The Kvibergspelen 2024"]
[Site "Kviberg Park Hotel & Conference, Krutvagen 2, Gothenburg, Sweden"]
[Date "2024.09.07"]
[Round "5.7"]
[White "Karlsson, Stefan"]
[Black "Andersson, Johan"]
[Result "1-0"]
[TimeControl "15 minutes + 5 seconds per move from move one (Round 1 - 4) / 90 minutes + 30 seconds per move from move one (Round 5 - 8)"]
[WhiteFideId "1771183"]
[BlackFideId "1703935"]
[WhiteElo "2035"]
[BlackElo "2158"]

1. e4 {[%clk 01:27:57]} {[%emt 00:03:02]} d6 {[%clk 01:30:43]} {[%emt
00:00:18]} 2. d4 {[%clk 01:28:21]} {[%emt 00:00:06]} Nf6 {[%clk 01:31:04]}
{[%emt 00:00:09]} 3. Nc3 {[%clk 01:28:44]} {[%emt 00:00:07]} c6 {[%clk
01:31:22]} {[%emt 00:00:12]} 4. Be3 {[%clk 01:28:36]} {[%emt 00:00:38]} Qb6
{[%clk 01:31:07]} {[%emt 00:00:44]} 5. a3 {[%clk 01:28:29]} {[%emt 00:00:37]}
Ng4 {[%clk 01:31:08]} {[%emt 00:00:29]} 6. Bc1 {[%clk 01:28:32]} {[%emt
00:00:27]} e5 {[%clk 01:30:18]} {[%emt 00:01:20]} 7. Nf3 {[%clk 01:28:04]}
{[%emt 00:00:58]} Nd7 {[%clk 01:24:15]} {[%emt 00:06:33]} 8. h3 {[%clk
01:28:18]} {[%emt 00:00:16]} Ngf6 {[%clk 01:24:25]} {[%emt 00:00:20]} 9. Be3
{[%clk 01:28:41]} {[%emt 00:00:08]} Qc7 {[%clk 01:24:21]} {[%emt 00:00:34]} 10.
g4 {[%clk 01:27:14]} {[%emt 00:01:55]} h6 {[%clk 01:20:46]} {[%emt 00:04:06]}
11. Qd2 {[%clk 01:24:26]} {[%emt 00:03:18]} b6 {[%clk 01:07:31]} {[%emt
00:13:46]} 12. O-O-O {[%clk 01:17:10]} {[%emt 00:07:46]} Bb7 {[%clk 01:02:42]}
{[%emt 00:05:18]} 13. Rg1 {[%clk 01:05:18]} {[%emt 00:12:22]} g6 {[%clk
00:52:37]} {[%emt 00:10:35]} 14. Kb1 {[%clk 00:56:30]} {[%emt 00:09:18]} Bg7
{[%clk 00:47:56]} {[%emt 00:05:11]} 15. dxe5 {[%clk 00:50:41]} {[%emt
00:06:19]} dxe5 {[%clk 00:39:59]} {[%emt 00:08:27]} 16. g5 {[%clk 00:44:09]}
{[%emt 00:07:02]} hxg5 {[%clk 00:35:06]} {[%emt 00:05:24]} 17. Nxg5 {[%clk
00:43:39]} {[%emt 00:00:59]} Rf8 {[%clk 00:17:26]} {[%emt 00:18:09]} 18. Bc4
{[%clk 00:30:01]} {[%emt 00:14:09]} Ke7 {[%clk 00:15:09]} {[%emt 00:02:47]} 19.
f4 {[%clk 00:26:57]} {[%emt 00:03:34]} Rad8 {[%clk 00:15:02]} {[%emt 00:00:38]}
20. Qf2 {[%clk 00:16:50]} {[%emt 00:10:35]} Nh5 {[%clk 00:11:46]} {[%emt
00:03:47]} 21. f5 {[%clk 00:16:03]} {[%emt 00:01:16]} Nb8 {[%clk 00:03:59]}
{[%emt 00:08:18]} 22. Rxd8 {[%clk 00:14:02]} {[%emt 00:02:31]} Qxd8 {[%clk
00:04:07]} {[%emt 00:00:23]} 23. Nxf7 {[%clk 00:12:35]} {[%emt 00:01:57]} Qc7
{[%clk 00:01:57]} {[%emt 00:02:39]} 24. fxg6 {[%clk 00:11:26]} {[%emt
00:01:39]} Nd7 {[%clk 00:02:10]} {[%emt 00:00:18]} 25. Bg5+ {[%clk 00:10:33]}
{[%emt 00:01:23]} Ndf6 {[%clk 00:02:13]} {[%emt 00:00:26]} 26. Qh4 {[%clk
00:10:16]} 1-0

[Event "The Kvibergspelen 2024"]
[Site "Kviberg Park Hotel & Conference, Krutvagen 2, Gothenburg, Sweden"]
[Date "2024.09.07"]
[Round "5.8"]
[White "Kingsley, Elias"]
[Black "Mashhadi, Peyman"]
[Result "1-0"]
[TimeControl "15 minutes + 5 seconds per move from move one (Round 1 - 4) / 90 minutes + 30 seconds per move from move one (Round 5 - 8)"]
[WhiteFideId "1775006"]
[BlackFideId "1768581"]
[WhiteElo "2047"]
[BlackElo "2148"]

1. c4 {[%clk 01:30:55]} {[%emt 00:00:05]} g6 {[%clk 01:30:53]} {[%emt
00:00:07]} 2. d4 {[%clk 01:31:12]} {[%emt 00:00:13]} Bg7 {[%clk 01:31:17]}
{[%emt 00:00:06]} 3. e4 {[%clk 01:31:10]} {[%emt 00:00:33]} d6 {[%clk
01:31:18]} {[%emt 00:00:29]} 4. Nc3 {[%clk 01:31:29]} {[%emt 00:00:11]} Nf6
{[%clk 01:31:37]} {[%emt 00:00:11]} 5. Nf3 {[%clk 01:31:49]} {[%emt 00:00:10]}
O-O {[%clk 01:31:48]} {[%emt 00:00:18]} 6. Be2 {[%clk 01:32:01]} {[%emt
00:00:18]} e5 {[%clk 01:31:16]} {[%emt 00:01:03]} 7. O-O {[%clk 01:32:13]}
{[%emt 00:00:18]} Nc6 {[%clk 01:31:28]} {[%emt 00:00:21]} 8. d5 {[%clk
01:32:20]} {[%emt 00:00:20]} Ne7 {[%clk 01:31:38]} {[%emt 00:00:20]} 9. h3
{[%clk 01:32:04]} {[%emt 00:00:46]} Nh5 {[%clk 01:25:41]} {[%emt 00:06:26]} 10.
Re1 {[%clk 01:29:40]} {[%emt 00:02:55]} h6 {[%clk 01:21:41]} {[%emt 00:04:30]}
11. Bf1 {[%clk 01:20:35]} {[%emt 00:09:35]} Qe8 {[%clk 01:06:46]} {[%emt
00:15:24]} 12. Nb5 {[%clk 01:14:27]} {[%emt 00:06:39]} Qd8 {[%clk 01:03:46]}
{[%emt 00:03:30]} 13. g4 {[%clk 01:02:05]} {[%emt 00:12:51]} a6 {[%clk
00:58:59]} {[%emt 00:05:18]} 14. gxh5 {[%clk 00:41:21]} {[%emt 00:21:13]} axb5
{[%clk 00:59:17]} {[%emt 00:00:12]} 15. cxb5 {[%clk 00:40:31]} {[%emt
00:01:21]} f5 {[%clk 00:53:26]} {[%emt 00:06:21]} 16. hxg6 {[%clk 00:37:09]}
{[%emt 00:03:52]} Nxg6 {[%clk 00:45:27]} {[%emt 00:08:29]} 17. Bg2 {[%clk
00:30:26]} {[%emt 00:07:12]} Nh4 {[%clk 00:41:48]} {[%emt 00:04:10]} 18. Nxh4
{[%clk 00:30:23]} {[%emt 00:00:32]} Qxh4 {[%clk 00:41:59]} {[%emt 00:00:19]} 19.
Qf3 {[%clk 00:30:10]} {[%emt 00:00:44]} f4 {[%clk 00:38:36]} {[%emt 00:03:53]}
20. Bd2 {[%clk 00:27:06]} {[%emt 00:03:33]} h5 {[%clk 00:38:08]} {[%emt
00:00:58]} 21. a4 {[%clk 00:24:59]} {[%emt 00:02:37]} Rf6 {[%clk 00:35:35]}
{[%emt 00:03:03]} 22. Ra3 {[%clk 00:16:51]} {[%emt 00:08:39]} Bd7 {[%clk
00:23:14]} {[%emt 00:12:50]} 23. Qd1 {[%clk 00:13:24]} {[%emt 00:03:57]} Raf8
{[%clk 00:21:59]} {[%emt 00:01:44]} 24. Rf3 {[%clk 00:09:21]} {[%emt 00:04:34]}
Bg4 {[%clk 00:20:10]} {[%emt 00:02:19]} 25. hxg4 {[%clk 00:07:20]} {[%emt
00:02:31]} hxg4 {[%clk 00:20:30]} {[%emt 00:00:10]} 26. Kf1 {[%clk 00:06:04]}
{[%emt 00:01:47]} Qh2 {[%clk 00:16:18]} {[%emt 00:04:41]} 27. Qc2 {[%clk
00:04:50]} {[%emt 00:01:44]} Rh6 {[%clk 00:12:40]} {[%emt 00:04:09]} 28. Qxc7
{[%emt 00:01:53]} gxf3 {[%clk 00:12:48]} {[%emt 00:00:18]} 29. Bxf3 {[%clk
00:03:49]} {[%emt 00:00:12]} Rh3 {[%clk 00:12:28]} {[%emt 00:00:49]} 30. Qc3
{[%clk 00:02:45]} {[%emt 00:01:34]} Bf6 {[%clk 00:07:56]} {[%emt 00:05:03]} 31.
Ke2 {[%clk 00:02:56]} {[%emt 00:00:19]} Bh4 {[%clk 00:07:46]} {[%emt 00:00:39]}
32. Rf1 {[%clk 00:03:21]} {[%emt 00:00:06]} Rg3 {[%clk 00:04:36]} {[%emt
00:03:40]} 33. Qc7 {[%clk 00:03:09]} {[%emt 00:00:42]} Rg1 {[%clk 00:04:04]}
{[%emt 00:01:01]} 34. Rxg1+ {[%clk 00:02:26]} {[%emt 00:01:13]} Qxg1 {[%clk
00:04:29]} {[%emt 00:00:04]} 35. Be1 {[%clk 00:02:50]} {[%emt 00:00:07]} Qg7
{[%clk 00:02:13]} {[%emt 00:02:47]} 36. Qxd6 {[%clk 00:02:26]} {[%emt
00:00:54]} Be7 {[%clk 00:01:19]} {[%emt 00:01:24]} 37. Qe6+ {[%clk 00:02:34]}
{[%emt 00:00:21]} Kh7 {[%clk 00:01:24]} {[%emt 00:00:25]} 38. Bc3 {[%clk
00:02:38]} {[%emt 00:00:26]} Bf6 {[%clk 00:01:33]} {[%emt 00:00:22]} 39. Bg4
{[%clk 00:02:41]} {[%emt 00:00:26]} Qg5 {[%clk 00:01:19]} {[%emt 00:00:44]} 40.
a5 {[%clk 00:02:08]} {[%emt 00:01:03]} Rg8 {[%clk 00:01:06]} {[%emt 00:00:43]}
41. Qf5+ {[%clk 00:01:53]} {[%emt 00:00:45]} Kh6 {[%clk 00:01:14]} {[%emt
00:00:23]} 42. Qxg5+ {[%clk 00:02:09]} {[%emt 00:00:14]} Kxg5 {[%clk 00:01:42]}
{[%emt 00:00:02]} 43. Be6 {[%clk 00:02:19]} {[%emt 00:00:19]} Rd8 {[%clk
00:01:29]} {[%emt 00:00:44]} 44. Bb4 {[%clk 00:02:08]} {[%emt 00:00:41]} Ra8
{[%clk 00:01:28]} {[%emt 00:00:31]} 45. b6 {[%clk 00:01:28]} {[%emt 00:01:10]}
Bd8 {[%clk 00:01:05]} {[%emt 00:00:52]} 46. Kd3 {[%clk 00:01:23]} {[%emt
00:00:35]} Kf6 {[%clk 00:01:20]} {[%emt 00:00:16]} 47. Bf5 {[%clk 00:01:28]}
{[%emt 00:00:25]} Be7 {[%clk 00:01:23]} {[%emt 00:00:27]} 48. Bc3 {[%clk
00:01:16]} {[%emt 00:00:42]} Rg8 {[%clk 00:01:05]} {[%emt 00:00:48]} 49. b4
{[%clk 00:01:09]} {[%emt 00:00:36]} Rg2 {[%clk 00:01:06]} {[%emt 00:00:29]} 50.
Ke2 {[%clk 00:01:27]} {[%emt 00:00:12]} Rg1 {[%clk 00:01:11]} {[%emt 00:00:25]}
51. Bc8 {[%clk 00:01:29]} {[%emt 00:00:28]} Rc1 {[%clk 00:01:21]} {[%emt
00:00:21]} 52. Kd2 {[%clk 00:01:35]} {[%emt 00:00:23]} Rb1 {[%clk 00:00:44]}
{[%emt 00:01:08]} 53. Bxb7 {[%clk 00:01:45]} {[%emt 00:00:20]} Bxb4 {[%clk
00:01:05]} {[%emt 00:00:09]} 54. Bxb4 {[%clk 00:01:29]} {[%emt 00:00:46]} Rxb4
{[%clk 00:01:33]} 55. a6 {[%clk 00:01:13]} {[%emt 00:00:46]} Rb2+ {[%clk
00:01:44]} {[%emt 00:00:20]} 56. Kc3 {[%clk 00:01:12]} {[%emt 00:00:31]} Rxf2
{[%clk 00:00:52]} {[%emt 00:01:21]} 57. a7 {[%clk 00:01:29]} {[%emt 00:00:14]}
Rf3+ {[%clk 00:00:46]} {[%emt 00:00:36]} 58. Kd2 {[%clk 00:01:40]} {[%emt
00:00:19]} Rf2+ {[%clk 00:00:58]} {[%emt 00:00:17]} 59. Ke1 {[%clk 00:02:02]}
1-0